bitfinex-derivatives/quotes_BTCF0:USTF0_20250130
["timestamp","ask_amount","ask_price","bid_price","bid_amount"]
[1738258699729,0.86848668,105120.0,105110.0,0.103]
[1738258700130,0.86848668,105120.0,105110.0,0.0006972]
[1738258701233,0.67263719,105120.0,105110.0,0.0006972]
[1738258701838,0.67263719,105120.0,105110.0,0.1909832]
[1738258702041,0.67263719,105120.0,105110.0,0.29450007]
[1738258702336,0.67263719,105120.0,105110.0,0.2564832]
[1738258702933,0.67263719,105120.0,105110.0,0.36000007]
[1738258703136,0.66330022,105120.0,105110.0,0.2564832]
[1738258704037,0.76681709,105120.0,105110.0,0.2564832]
[1738258704229,0.76681709,105120.0,105110.0,0.0661972]
[1738258705035,0.76681709,105120.0,105110.0,0.0006972]
[1738258705435,0.65458387,105120.0,105110.0,0.0006972]
[1738258706042,0.66415677,105120.0,105110.0,0.0006972]
[1738258707943,0.77638999,105120.0,105110.0,0.0006972]
[1738258711746,0.87990686,105120.0,105110.0,0.0006972]
[1738258714047,0.76767364,105120.0,105110.0,0.0006972]
[1738258714252,0.93868231,105120.0,105110.0,0.0006972]
[1738258720045,0.93868231,105120.0,105110.0,2e-07]
[1738258720245,0.74841531,105120.0,105050.0,0.73910038]
[1738258720450,0.551169,105070.0,105060.0,0.22227]
[1738258720952,0.551169,105070.0,105060.0,0.32578687]
[1738258721151,0.551169,105070.0,105050.0,0.58798851]
[1738258721345,0.551169,105070.0,105050.0,0.23318851]
[1738258721346,0.75820974,105060.0,105050.0,0.23318851]
[1738258721555,0.75820974,105060.0,105020.0,0.13786747]
[1738258721556,0.3608,105040.0,105020.0,0.13786747]
[1738258721745,0.190485,105000.0,104990.0,0.83459946]
[1738258721949,1.15167874,105000.0,104990.0,0.83459946]
[1738258722246,0.82511687,105000.0,104990.0,0.83459946]
[1738258722451,0.82511687,105000.0,104990.0,0.84239788]
[1738258722950,0.82511687,105000.0,104990.0,1.02510246]
[1738258723152,0.82511687,105000.0,104990.0,1.03290088]
[1738258723354,0.46431687,105000.0,104990.0,1.03290088]
[1738258723952,0.3608,105000.0,104990.0,1.03290088]
[1738258724253,0.001,105000.0,104990.0,1.13841775]
[1738258724450,0.00014258,105010.0,105000.0,0.190485]
[1738258724651,0.46574642,105030.0,105020.0,0.190449]
[1738258724652,0.00142955,105030.0,105020.0,0.190449]
[1738258724851,0.00142955,105030.0,105020.0,0.55904742]
[1738258725055,0.00142955,105030.0,105020.0,0.66256429]
[1738258725352,0.46431687,105040.0,105030.0,0.190431]
[1738258725560,0.3608,105050.0,105040.0,0.190412]
[1738258725762,0.36094258,105050.0,105040.0,0.30172729]
[1738258726655,5.8e-07,105050.0,105040.0,0.35486943]
[1738258726859,0.3608,105060.0,105050.0,0.190394]
[1738258727049,0.3608,105070.0,105060.0,0.190376]
[1738258727249,0.3608,105070.0,105060.0,0.19817442]
[1738258727455,0.3608,105070.0,105060.0,0.190376]
[1738258727649,0.39336,105070.0,105060.0,0.19817442]
[1738258727850,0.3608,105070.0,105060.0,0.35483343]
[1738258728252,0.3668,105070.0,105060.0,0.19917442]
[1738258728454,0.3668,105070.0,105060.0,0.191376]
[1738258728757,0.557158,105070.0,105060.0,0.191376]
[1738258729158,0.589638,105070.0,105060.0,0.191376]
[1738258729358,0.557158,105070.0,105060.0,0.191376]
[1738258729562,0.589598,105070.0,105060.0,0.191376]
[1738258729761,0.598598,105070.0,105060.0,0.191376]
[1738258730258,0.596598,105070.0,105060.0,0.190376]
[1738258730464,0.591598,105070.0,105060.0,0.190376]
[1738258730855,0.85119264,105070.0,105060.0,0.0189645]
[1738258731050,0.84719264,105070.0,105050.0,0.18980159]
[1738258731251,0.26659464,105070.0,105060.0,0.35483343]
[1738258731562,0.00014258,105080.0,105070.0,0.190358]
[1738258731859,0.36094258,105080.0,105070.0,0.00779842]
[1738258732058,0.22344084,105070.0,105060.0,0.224471]
[1738258732358,0.58424084,105070.0,105060.0,0.00779842]
[1738258732556,0.77459884,105070.0,105060.0,0.00779842]
[1738258732750,0.58424084,105070.0,105050.0,0.38018859]
[1738258732952,0.551176,105060.0,105050.0,0.38798701]
[1738258734357,0.551176,105060.0,105050.0,0.25899748]
[1738258734862,0.3618,105060.0,105050.0,0.00779842]
[1738258735051,0.552176,105060.0,105040.0,0.37866801]
[1738258735260,0.551194,105050.0,105040.0,0.37866801]
[1738258735570,0.551194,105050.0,105040.0,0.37881059]
[1738258735760,0.551194,105050.0,105040.0,0.38660901]
[1738258735959,0.551194,105050.0,105040.0,0.15665901]
[1738258736159,0.58530446,105060.0,105040.0,0.15665901]
[1738258736362,0.22350446,105060.0,105050.0,0.34705301]
[1738258736760,0.41868273,105060.0,105050.0,0.34705301]
[1738258737263,0.41868273,105060.0,105050.0,0.30371925]
[1738258737456,0.41868273,105060.0,105050.0,0.36891925]
[1738258737966,0.41968273,105060.0,105050.0,0.36891925]
[1738258738765,0.14057984,105060.0,105050.0,0.73971925]
[1738258739260,0.14057984,105060.0,105050.0,0.77181925]
[1738258741368,0.11274221,105060.0,105050.0,0.77181925]
[1738258742869,0.13943726,105070.0,105060.0,0.190376]
[1738258743173,0.13943726,105070.0,105060.0,0.70783501]
[1738258743466,0.50023726,105070.0,105060.0,0.38055501]
[1738258744170,0.50023726,105070.0,105060.0,0.41415501]
[1738258744365,0.50023726,105070.0,105060.0,0.41615501]
[1738258744768,0.13943726,105070.0,105060.0,0.41615501]
[1738258745469,0.36094258,105080.0,105070.0,0.190358]
[1738258745668,0.00014258,105080.0,105070.0,0.34701701]
[1738258746260,0.00014258,105080.0,105070.0,0.70781701]
[1738258747071,0.00114258,105080.0,105070.0,0.70781701]
[1738258747365,0.00114258,105080.0,105070.0,0.74121701]
[1738258747565,0.00114258,105080.0,105070.0,0.70781701]
[1738258748073,0.00114258,105080.0,105070.0,0.74113701]
[1738258748771,0.00114258,105080.0,105070.0,0.65551476]
[1738258748971,0.00114258,105080.0,105070.0,0.68879476]
[1738258749872,0.00114258,105080.0,105070.0,0.29471476]
[1738258750172,0.00014258,105080.0,105070.0,0.29671476]
[1738258750768,0.00114258,105080.0,105070.0,0.30171476]
[1738258751275,0.00014258,105080.0,105070.0,0.29671476]
[1738258752862,0.00114258,105080.0,105070.0,0.29971476]
[1738258753467,0.36094258,105080.0,105060.0,0.14743073]
[1738258753669,0.3608,105070.0,105060.0,0.29472776]
[1738258753972,0.55129058,105080.0,105070.0,0.192358]
[1738258754172,0.55129058,105080.0,105070.0,0.29671476]
[1738258754173,0.69095341,105080.0,105070.0,0.29671476]
[1738258754476,0.50060541,105080.0,105070.0,0.29671476]
[1738258754775,0.50060541,105080.0,105070.0,0.29471476]
[1738258754776,0.14080541,105080.0,105070.0,0.29471476]
[1738258755077,0.50160541,105080.0,105070.0,0.29471476]
[1738258755276,0.69194541,105080.0,105070.0,0.29471476]
[1738258755469,0.69194541,105080.0,105070.0,0.190358]
[1738258756175,0.69094541,105080.0,105070.0,0.192358]
[1738258756969,0.39414258,105080.0,105070.0,0.192358]
[1738258757168,0.39414258,105080.0,105070.0,0.29671476]
[1738258757579,0.58448258,105080.0,105070.0,0.29671476]
[1738258758576,0.58448258,105080.0,105070.0,0.192358]
[1738258763580,0.89373247,105080.0,105070.0,0.192358]
[1738258765980,0.75316434,105080.0,105070.0,0.192358]
[1738258769676,0.52962434,105080.0,105070.0,0.29671476]
[1738258770584,0.52962434,105080.0,105070.0,0.192358]
[1738258772774,0.52962434,105080.0,105070.0,0.32891476]
[1738258773582,0.52962434,105080.0,105070.0,0.224558]
[1738258774882,0.50169327,105080.0,105070.0,0.224558]
[1738258775278,0.50169327,105080.0,104990.0,0.490536]
[1738258775279,0.05759,105070.0,105000.0,0.408418]
[1738258775485,0.10435676,105020.0,104990.0,0.46515676]
[1738258775786,0.190449,105020.0,105000.0,0.29483676]
[1738258775982,0.190449,105020.0,105010.0,0.10435676]
[1738258776377,0.551249,105020.0,105010.0,0.10435676]
[1738258776684,0.551249,105020.0,105010.0,0.0305]
[1738258777278,0.552249,105020.0,105010.0,0.0305]
[1738258777488,0.553249,105020.0,105010.0,0.0305]
[1738258777684,0.553249,105020.0,105010.0,0.0943]
[1738258780984,0.192449,105020.0,105010.0,0.0943]
[1738258781588,0.192449,105020.0,105010.0,0.284767]
[1738258781888,0.553249,105020.0,105010.0,0.284767]
[1738258782082,0.553249,105020.0,105010.0,0.38912376]
[1738258783482,0.553249,105020.0,105010.0,0.284767]
[1738258786091,0.65760576,105020.0,105010.0,0.0943]
[1738258786481,0.553249,105020.0,105010.0,0.0943]
[1738258787492,0.65760576,105020.0,105010.0,0.0943]
[1738258788784,0.553249,105020.0,105010.0,0.0943]
[1738258790088,0.553249,105020.0,105010.0,0.284767]
[1738258790394,0.65760576,105020.0,105010.0,0.0943]
[1738258791890,0.553249,105020.0,105010.0,0.284767]
[1738258792898,0.192449,105020.0,105010.0,0.38912376]
[1738258793489,0.192449,105020.0,105010.0,0.284767]
[1738258793691,0.553249,105020.0,105010.0,0.284767]
[1738258796097,0.90323352,105020.0,104970.0,0.037]
[1738258796296,0.551321,104980.0,104970.0,0.037]
[1738258796598,0.551321,104980.0,104970.0,0.04318558]
[1738258796791,0.551321,104980.0,104970.0,0.13948558]
[1738258796792,0.912121,104980.0,104970.0,0.13948558]
[1738258797297,0.00014258,104990.0,104970.0,0.64128234]
[1738258797591,0.19065458,104990.0,104980.0,0.29487776]
[1738258797988,0.19065458,104990.0,104980.0,0.190521]
[1738258799297,0.19065458,104990.0,104980.0,0.29487776]
[1738258799492,0.19165458,104990.0,104980.0,0.29487776]
[1738258799698,0.36194258,104990.0,104980.0,0.29487776]
[1738258800093,0.36094258,104990.0,104980.0,0.29787776]
[1738258800595,0.00014258,104990.0,104980.0,0.29787776]
[1738258800896,0.00014258,104990.0,104980.0,0.33031776]
[1738258801100,0.00014258,104990.0,104980.0,0.69111776]
[1738258801802,0.14218014,105010.0,105000.0,0.190485]
[1738258802101,0.30943245,105020.0,105010.0,0.190467]
[1738258802302,0.30943245,105020.0,105010.0,0.29482376]
[1738258804002,0.31243245,105020.0,105010.0,0.29482376]
[1738258804202,0.31943245,105020.0,105010.0,0.65562376]
[1738258804399,0.21763245,105020.0,105010.0,0.65562376]
[1738258804606,0.16673245,105020.0,105010.0,0.65562376]
[1738258804797,0.16473245,105020.0,105010.0,0.65562376]
[1738258804989,0.00014258,105030.0,105020.0,0.190449]
[1738258805199,0.00014258,105030.0,105020.0,0.65560576]
[1738258805505,0.36094258,105030.0,105020.0,0.29480576]
[1738258805702,0.55137258,105030.0,105020.0,0.190449]
[1738258806204,0.55137258,105030.0,105020.0,0.29480576]
[1738258806390,0.55337258,105030.0,105020.0,0.29480576]
[1738258806905,0.55637258,105030.0,105020.0,0.29480576]
[1738258807511,0.36594258,105030.0,105020.0,0.29480576]
[1738258808004,0.66072934,105030.0,105020.0,0.190449]
[1738258808205,0.55637258,105030.0,105020.0,0.190449]
[1738258809193,0.66882925,105030.0,105020.0,0.190449]
[1738258809604,0.66882925,105030.0,105020.0,0.29480576]
[1738258810705,0.47839925,105030.0,105020.0,0.29480576]
[1738258810898,0.11759925,105030.0,105020.0,0.32550576]
[1738258813113,0.08942582,105030.0,105020.0,0.32550576]
[1738258816614,0.08942582,105030.0,105020.0,0.68630576]
[1738258816805,0.08942582,105030.0,105020.0,0.71794576]
[1738258817815,0.08942582,105030.0,105020.0,0.46515676]
[1738258818117,0.047612,105020.0,104980.0,0.10435676]
[1738258818305,0.551303,104990.0,104980.0,0.10435676]
[1738258818721,0.551287,105000.0,104980.0,0.65566776]
[1738258818906,0.551287,105000.0,104990.0,0.29485976]
[1738258819104,0.3608,105000.0,104990.0,0.29485976]
[1738258819307,0.55141758,105010.0,104990.0,0.29485976]
[1738258819506,0.55141758,105010.0,105000.0,0.10435676]
[1738258820116,0.19061758,105010.0,105000.0,0.10435676]
[1738258820518,0.55141758,105010.0,105000.0,0.10435676]
[1738258820721,0.55141758,105010.0,105000.0,0.32634176]
[1738258821013,0.55441758,105010.0,105000.0,0.32634176]
[1738258821801,0.55441758,105010.0,105000.0,0.13585676]
[1738258822216,0.55441758,105010.0,105000.0,0.32634176]
[1738258822522,0.55141758,105010.0,105000.0,0.33034176]
[1738258822714,0.55141758,105010.0,105000.0,0.36184176]
[1738258823115,0.55141758,105010.0,105000.0,0.35884176]
[1738258823313,0.55141758,105010.0,105000.0,0.35784176]
[1738258823504,0.00014258,105010.0,105000.0,0.35784176]
[1738258823707,0.00014258,105010.0,105000.0,0.82299852]
[1738258823904,0.08429423,105010.0,105000.0,0.82299852]
[1738258824107,0.08429423,105010.0,105000.0,0.82399852]
[1738258824510,0.08429423,105010.0,105000.0,0.83399852]
[1738258824918,0.08429423,105010.0,105000.0,2.33399852]
[1738258825921,0.11245667,105020.0,105010.0,0.29482376]
[1738258826115,0.30290567,105020.0,105010.0,0.29482376]
[1738258826316,0.30290567,105020.0,105010.0,0.65562376]
[1738258826317,0.11245667,105020.0,105010.0,0.65562376]
[1738258827016,0.66383625,105030.0,105020.0,0.190449]
[1738258827921,0.66383625,105030.0,105020.0,0.29480576]
[1738258828620,0.11259925,105030.0,105020.0,0.29480576]
[1738258829024,0.57775601,105030.0,105000.0,2.09081385]
[1738258829323,0.190451,105020.0,105010.0,0.190452]
[1738258829512,0.190451,105020.0,105010.0,0.200452]
[1738258829914,0.551251,105020.0,105010.0,0.200452]
[1738258831422,0.65560776,105020.0,105010.0,0.01]
[1738258831628,0.190467,105010.0,105000.0,0.26852009]
[1738258831930,0.584567,105010.0,105000.0,0.27362258]
[1738258832724,0.584567,105010.0,105000.0,0.27462258]
[1738258833325,0.68892376,105010.0,105000.0,0.08714258]
[1738258833528,0.68892376,105010.0,105000.0,0.02414258]
[1738258833727,0.71932376,105010.0,105000.0,0.02414258]
[1738258834231,0.7191857,105010.0,105000.0,0.02414258]
[1738258834739,0.7191857,105010.0,105000.0,0.01414258]
[1738258836325,0.83164237,105010.0,105000.0,0.01414258]
[1738258837033,0.77687019,105010.0,104970.0,0.22895864]
[1738258837224,0.551321,104980.0,104970.0,0.22895864]
[1738258837421,0.551321,104980.0,104970.0,0.3333154]
[1738258838024,0.551309,104990.0,104980.0,0.190521]
[1738258838335,0.55145158,104990.0,104980.0,0.190521]
[1738258838633,0.55145158,104990.0,104980.0,0.29487776]
[1738258839321,0.55145158,104990.0,104980.0,0.190521]
[1738258840124,0.55245158,104990.0,104980.0,0.197521]
[1738258840730,0.55245158,104990.0,104980.0,0.200521]
[1738258848933,0.55245158,104990.0,104980.0,0.242321]
[1738258848934,0.19165158,104990.0,104980.0,0.242321]
[1738258849133,0.00114258,104990.0,104980.0,0.71747776]
[1738258849334,0.00114258,104990.0,104980.0,0.35667776]
[1738258849640,0.00114258,104990.0,104980.0,0.74803776]
[1738258851636,0.00114258,104990.0,104980.0,0.67567776]
[1738258851838,0.00114258,104990.0,104980.0,0.70611776]
[1738258852734,0.00114258,104990.0,104980.0,0.70607776]
[1738258854538,0.69703267,105010.0,104980.0,0.51555676]
[1738258854539,0.11245667,105010.0,104980.0,0.51555676]
[1738258854835,0.80413442,105020.0,105010.0,0.190467]
[1738258855540,0.80413442,105020.0,105010.0,0.29482376]
[1738258855541,0.25288042,105020.0,105010.0,0.29482376]
[1738258855845,0.25288042,105020.0,105010.0,0.190467]
[1738258856241,0.61368042,105020.0,105010.0,0.190467]
[1738258856443,0.61468042,105020.0,105010.0,0.190467]
[1738258857043,0.61568042,105020.0,105010.0,0.190467]
[1738258857841,0.3628,105020.0,105010.0,0.190467]
[1738258858041,0.002,105020.0,105010.0,0.190467]
[1738258858342,0.002,105020.0,105010.0,0.29482376]
[1738258858944,0.002,105020.0,105010.0,0.32498376]
[1738258859341,0.002,105020.0,105010.0,0.33498376]
[1738258860056,0.002,105020.0,105010.0,0.69578376]
[1738258862744,0.002,105020.0,105010.0,0.33498376]
[1738258863137,0.002,105020.0,105010.0,0.69578376]
[1738258863342,0.002,105020.0,105010.0,0.33498376]
[1738258866050,0.002,105020.0,105010.0,0.69578376]
[1738258869350,0.002,105020.0,105010.0,0.80014052]
[1738258869553,0.00014258,105030.0,105020.0,0.190449]
[1738258869753,0.00014258,105030.0,105020.0,0.78790576]
[1738258870840,0.00214258,105030.0,105020.0,0.78790576]
[1738258871051,0.00214258,105030.0,105020.0,0.42710576]
[1738258871454,0.00214258,105030.0,105020.0,0.45678576]
[1738258871646,0.00514258,105030.0,105020.0,0.81758576]
[1738258871950,0.00514258,105030.0,105020.0,1.31658576]
[1738258872151,0.00514258,105030.0,105020.0,0.95578576]
[1738258872549,0.00514258,105030.0,105020.0,1.31658576]
[1738258874557,0.00514258,105030.0,105020.0,0.95578576]
[1738258874742,0.00514258,105030.0,105020.0,1.31658576]
[1738258875656,0.55637258,105030.0,105020.0,0.88490576]
[1738258875956,0.55637258,105030.0,105020.0,0.699449]
[1738258876156,0.63887258,105030.0,105020.0,0.699449]
[1738258876546,0.74322934,105030.0,105020.0,0.499]
[1738258877348,0.74322934,105030.0,105020.0,0.2941]
[1738258877349,0.77286934,105030.0,105020.0,0.2941]
[1738258877552,0.77286934,105030.0,105020.0,0.2258]
[1738258880057,0.77789863,105030.0,105020.0,0.2258]
[1738258880356,0.91832238,105030.0,105020.0,0.2258]
[1738258881158,0.91832238,105030.0,105020.0,0.08289699]
[1738258883149,0.81376562,105030.0,105020.0,0.08289699]
[1738258884656,0.91812238,105030.0,105020.0,0.08289699]
[1738258884955,0.88868238,105030.0,105020.0,0.08289699]
[1738258885147,0.14556633,105030.0,105020.0,0.37770275]
[1738258885347,0.14556633,105030.0,105020.0,0.82470275]
[1738258885548,0.14556633,105030.0,105020.0,0.83470275]
[1738258885959,0.14556633,105030.0,105020.0,2.33470275]
[1738258886257,0.14556633,105030.0,105020.0,0.83470275]
[1738258889960,0.00514258,105030.0,105020.0,0.83470275]
[1738258890461,0.00514258,105030.0,105020.0,0.8398547]
[1738258890657,0.00514258,105030.0,105020.0,0.5083747]
[1738258891153,0.19557258,105030.0,105020.0,0.5083747]
[1738258891348,0.55637258,105030.0,105020.0,0.37469794]
[1738258891661,0.55637258,105030.0,105020.0,0.36954599]
[1738258892965,0.55637258,105030.0,105020.0,0.47390275]
[1738258893861,0.55637258,105030.0,105020.0,0.36954599]
[1738258894867,0.55637258,105030.0,105020.0,0.35954599]
[1738258895167,0.55637258,105030.0,105020.0,0.46390275]
[1738258895564,0.66863648,105030.0,105020.0,0.46390275]
[1738258899068,0.80906023,105030.0,105020.0,0.46390275]
[1738258899271,0.25783023,105030.0,105020.0,0.46390275]
[1738258899472,0.25783023,105030.0,105020.0,0.47390275]
[1738258899672,0.25783023,105030.0,105020.0,2.33470275]
[1738258900764,0.25783023,105030.0,105020.0,0.83470275]
[1738258901266,0.25783023,105030.0,105020.0,2.33470275]
[1738258901971,0.25783023,105030.0,105020.0,0.83470275]
[1738258902174,0.00514258,105030.0,105020.0,0.83470275]
[1738258902466,0.00514258,105030.0,105020.0,0.87170275]
[1738258902669,0.00514258,105030.0,105020.0,0.90058275]
[1738258907473,0.00314258,105030.0,105020.0,0.90258275]
[1738258908176,0.00114258,105030.0,105020.0,0.90758275]
[1738258908369,0.6634689,105050.0,105020.0,0.90758275]
[1738258908574,0.6634689,105050.0,105040.0,0.29476876]
[1738258911568,0.6634689,105050.0,105040.0,0.237812]
[1738258913475,0.6634689,105050.0,105040.0,0.238812]
[1738258914078,0.6634689,105050.0,105040.0,0.34216876]
[1738258914972,0.6634689,105050.0,105040.0,0.33916876]
[1738258915272,0.4730639,105050.0,105040.0,0.33916876]
[1738258916176,0.6634579,105050.0,105040.0,0.33916876]
[1738258916575,0.80388165,105050.0,105040.0,0.33916876]
[1738258918771,0.61348765,105050.0,105040.0,0.33916876]
[1738258919278,0.80388165,105050.0,105040.0,0.33916876]
[1738258920276,0.85998681,105050.0,105040.0,0.37616876]
[1738258920476,0.49918681,105050.0,105040.0,0.37616876]
[1738258920676,0.66959281,105050.0,105040.0,0.37616876]
[1738258920983,0.30879281,105050.0,105040.0,0.37616876]
[1738258922372,0.30879281,105050.0,105040.0,0.40436876]
[1738258923379,0.14042375,105050.0,105040.0,0.40436876]
[1738258924581,0.14042375,105050.0,105040.0,0.41436876]
[1738258925182,0.14042375,105050.0,105040.0,0.77516876]
[1738258925589,0.16836906,105060.0,105050.0,0.190394]
[1738258925883,0.16858586,105070.0,105060.0,0.190376]
[1738258926085,0.16858586,105070.0,105060.0,0.66553276]
[1738258926283,0.16858586,105070.0,105060.0,0.589296]
[1738258926485,0.16858586,105070.0,105060.0,0.69365276]
[1738258927190,0.17458586,105070.0,105060.0,0.69465276]
[1738258927481,0.17458586,105070.0,105060.0,0.79900952]
[1738258927686,0.17458586,105070.0,105060.0,0.69465276]
[1738258927884,0.17758586,105070.0,105060.0,0.69465276]
[1738258928985,0.17758586,105070.0,105060.0,0.73855276]
[1738258929182,0.17758586,105070.0,105060.0,0.77555276]
[1738258929490,0.009,105070.0,105060.0,0.87990952]
[1738258929881,0.1124492,105080.0,105070.0,0.190358]
[1738258930089,0.0014282,105090.0,105080.0,0.19034]
[1738258930287,0.4608,105100.0,105090.0,0.190322]
[1738258930485,0.4608,105100.0,105090.0,0.33967876]
[1738258931090,0.4608,105100.0,105090.0,0.36779876]
[1738258931684,0.4628,105100.0,105090.0,0.36779876]
[1738258931881,0.4628,105100.0,105090.0,0.47215552]
[1738258932078,0.102,105100.0,105090.0,0.83295552]
[1738258932279,0.105,105100.0,105090.0,0.83295552]
[1738258932479,0.105,105100.0,105090.0,0.86995552]
[1738258933681,0.00014258,105110.0,105100.0,0.39901752]
[1738258933881,0.00014258,105110.0,105100.0,0.69846076]
[1738258934888,0.00514258,105110.0,105100.0,0.69846076]
[1738258936091,0.00714258,105110.0,105100.0,0.69846076]
[1738258936288,0.00714258,105110.0,105100.0,0.70846076]
[1738258936487,0.00714258,105110.0,105100.0,0.74546076]
[1738258937990,0.00714258,105110.0,105100.0,0.87793752]
[1738258938393,0.00714258,105110.0,105100.0,0.77358076]
[1738258939499,0.00714258,105110.0,105100.0,0.77354076]
[1738258940088,0.0014275,105130.0,105100.0,0.68759352]
[1738258940288,0.0014275,105130.0,105120.0,0.75978052]
[1738258940488,0.0014275,105130.0,105120.0,0.78786052]
[1738258940796,0.0014275,105130.0,105120.0,0.86906052]
[1738258941002,0.659517,105150.0,105140.0,0.190231]
[1738258941003,0.551017,105150.0,105140.0,0.190231]
[1738258941303,0.3608,105150.0,105140.0,0.35970776]
[1738258941799,0.55114358,105160.0,105150.0,0.190213]
[1738258941997,0.55114358,105160.0,105150.0,0.29456976]
[1738258942207,0.00014258,105160.0,105150.0,0.29456976]
[1738258942497,0.00666172,105160.0,105150.0,0.29456976]
[1738258943286,0.00766172,105160.0,105150.0,0.29556976]
[1738258943489,0.00766172,105160.0,105150.0,0.33256976]
[1738258944196,0.36846172,105160.0,105150.0,0.228213]
[1738258944396,0.66301348,105160.0,105150.0,0.038]
[1738258945097,0.66701348,105160.0,105150.0,0.038]
[1738258945297,0.66701348,105160.0,105150.0,0.228213]
[1738258945792,0.66701348,105160.0,105150.0,0.038]
[1738258946097,0.69497348,105160.0,105150.0,0.038]
[1738258946393,0.69505348,105160.0,105150.0,0.038]
[1738258946595,0.190213,105150.0,105140.0,0.08552405]
[1738258946788,0.551013,105150.0,105140.0,0.08552405]
[1738258947386,0.551013,105150.0,105140.0,0.18988081]
[1738258947595,0.554013,105150.0,105140.0,0.18988081]
[1738258947895,0.554013,105150.0,105140.0,0.190226]
[1738258948097,0.559013,105150.0,105140.0,0.191226]
[1738258949296,0.64257258,105150.0,105140.0,0.191226]
[1738258949695,0.74692934,105150.0,105140.0,0.191226]
[1738258949998,0.64257258,105150.0,105140.0,0.191226]
[1738258950188,0.64257258,105150.0,105130.0,0.13951001]
[1738258950390,0.3608,105140.0,105130.0,0.32975901]
[1738258951299,0.63957258,105150.0,105140.0,0.190231]
[1738258951489,0.74592934,105150.0,105140.0,0.190231]
[1738258951690,0.74092934,105150.0,105140.0,0.190231]
[1738258952589,0.74092934,105150.0,105130.0,0.17748609]
[1738258952798,0.64157258,105150.0,105140.0,0.191231]
[1738258953000,0.63957258,105150.0,105140.0,0.191231]
[1738258953299,0.63957258,105150.0,105140.0,0.29558776]
[1738258953489,0.63957258,105150.0,105140.0,0.191231]
[1738258953801,0.64157258,105150.0,105140.0,0.191231]
[1738258954188,0.66236976,105150.0,105140.0,0.191231]
[1738258954600,0.66336976,105150.0,105140.0,0.191231]
[1738258954800,0.559013,105150.0,105140.0,0.191231]
[1738258955297,0.559013,105150.0,105140.0,0.29558776]
[1738258955894,0.198213,105150.0,105140.0,0.29558776]
[1738258956095,0.008,105150.0,105140.0,0.33346776]
[1738258956702,0.008,105150.0,105140.0,0.69426776]
[1738258957408,0.198213,105150.0,105140.0,0.33346776]
[1738258957903,0.008,105150.0,105140.0,0.33346776]
[1738258958091,0.198213,105150.0,105140.0,0.33346776]
[1738258958608,0.008,105150.0,105140.0,0.69426776]
[1738258959401,0.008,105150.0,105140.0,0.79862452]
[1738258960003,0.08370216,105160.0,105150.0,0.190213]
[1738258960200,0.08370216,105160.0,105150.0,1.04852652]
[1738258961094,0.33008129,105180.0,105170.0,0.190177]
[1738258961291,0.13992229,105180.0,105170.0,0.37233376]
[1738258963794,0.14192229,105180.0,105170.0,0.37233376]
[1738258965691,0.14192229,105180.0,105170.0,0.73313376]
[1738258967197,0.14192229,105180.0,105170.0,0.29453376]
[1738258967498,0.33208129,105180.0,105170.0,0.35233376]
[1738258968509,0.14192229,105180.0,105170.0,0.35233376]
[1738258971998,0.14192229,105180.0,105170.0,0.35962829]
[1738258974008,0.002,105180.0,105170.0,0.35962829]
[1738258974397,0.002,105180.0,105170.0,0.22747153]
[1738258974398,0.192159,105180.0,105170.0,0.22747153]
[1738258974604,0.552959,105180.0,105170.0,0.22747153]
[1738258974804,0.686659,105180.0,105170.0,0.22747153]
[1738258975104,0.686659,105180.0,105170.0,0.33182829]
[1738258975308,0.552959,105180.0,105170.0,0.33182829]
[1738258980402,0.3628,105180.0,105170.0,0.33182829]
[1738258981699,0.002,105180.0,105170.0,0.33182829]
[1738258982907,0.002,105180.0,105170.0,0.79698505]
[1738258983319,0.00151963,105190.0,105180.0,0.190159]
[1738258983507,9.277e-05,105190.0,105180.0,0.92737252]
[1738258983911,0.23992229,105200.0,105190.0,0.190141]
[1738258984110,0.23992229,105200.0,105190.0,0.73109776]
[1738258985510,0.16707403,105210.0,105190.0,0.64631352]
[1738258985710,0.16707403,105210.0,105200.0,0.78743652]
[1738258985920,0.16707403,105210.0,105200.0,0.69307976]
[1738258986122,0.16707403,105210.0,105200.0,0.79743652]
[1738258986818,0.71794303,105230.0,105220.0,0.190087]
[1738258987629,0.71794303,105230.0,105220.0,0.29444376]
[1738258988023,0.71794303,105230.0,105220.0,0.29422535]
[1738258988322,0.71794303,105230.0,105220.0,0.29522535]
[1738258988519,0.71794303,105230.0,105220.0,0.19086859]
[1738258989120,0.72294303,105230.0,105220.0,0.001]
[1738258989311,0.82729979,105230.0,105220.0,0.001]
[1738258990720,0.82729979,105230.0,105210.0,0.00014258]
[1738258990721,0.190087,105220.0,105210.0,0.00014258]
[1738258990925,0.550887,105220.0,105210.0,0.19024758]
[1738258992213,0.550887,105220.0,105210.0,0.19124758]
[1738258992214,0.554887,105220.0,105210.0,0.19124758]
[1738258992919,0.65924376,105220.0,105210.0,0.19124758]
[1738258993116,0.68700376,105220.0,105210.0,0.19124758]
[1738258993312,0.79691676,105220.0,105190.0,0.00876105]
[1738258993523,0.550923,105200.0,105190.0,0.1915667]
[1738258994819,0.552923,105200.0,105190.0,0.1915667]
[1738258996122,0.553923,105200.0,105190.0,0.1915667]
[1738258998927,0.003,105200.0,105190.0,0.30592346]
[1738258999518,0.193123,105200.0,105190.0,0.2015667]
[1738258999719,0.553923,105200.0,105190.0,0.2015667]
[1738259000718,0.65827976,105200.0,105190.0,0.2015667]
[1738259002714,0.553923,105200.0,105190.0,0.2015667]
[1738259003629,0.65827976,105200.0,105190.0,0.2015667]
[1738259005837,0.65827976,105200.0,105190.0,0.200141]
[1738259006337,0.553923,105200.0,105190.0,0.200141]
[1738259008228,0.65827976,105200.0,105190.0,0.200141]
[1738259011636,0.65827976,105200.0,105190.0,0.01]
[1738259012041,0.46815676,105200.0,105180.0,0.19751628]
[1738259012231,0.550941,105190.0,105180.0,0.19751628]
[1738259012631,0.550941,105190.0,105180.0,0.19028658]
[1738259013530,0.551941,105190.0,105180.0,0.19028658]
[1738259017345,0.551941,105190.0,105180.0,0.29464334]
[1738259018643,0.551941,105190.0,105180.0,0.19028658]
[1738259021850,0.65629776,105190.0,105180.0,0.20028658]
[1738259022145,0.65629776,105190.0,105180.0,0.00014258]
[1738259022447,0.65629776,105190.0,105180.0,0.19030158]
[1738259022948,0.76847387,105190.0,105180.0,0.19030158]
[1738259023149,0.81287387,105190.0,105180.0,0.19030158]
[1738259023548,0.81487387,105190.0,105180.0,0.19030158]
[1738259024442,0.81487387,105190.0,105180.0,0.00014258]
[1738259024644,0.81487387,105190.0,105170.0,0.39654605]
[1738259024645,0.190159,105180.0,105170.0,0.39654605]